[Event "*** Titled Tuesday Blitz"]
[Site "Chess.com"]
[Date "2018.08.07"]
[Round "8"]
[White "epccmelech"]
[Black "BillForster"]
[Result "0-1"]
[WhiteElo "1674"]
[BlackElo "1637"]
[TimeControl "180+2"]
[EndTime "14:48:46 PDT"]
[Termination "BillForster won on time"]

1. d4 {[%clk 0:02:48.7]} 1... d5 {[%clk 0:02:59.4]} 2. Nc3 {[%clk 0:02:46.3]}
2... Nf6 {[%clk 0:02:56.8]} 3. f3 {[%clk 0:02:43.4]} 3... g6 {[%clk 0:02:46.8]}
4. e4 {[%clk 0:02:42.2]} 4... Bg7 {[%clk 0:02:44.5]} 5. e5 {[%clk 0:02:39.4]}
5... Ng8 {[%clk 0:02:32.1]} 6. f4 {[%clk 0:02:29.8]} 6... h5 {[%clk 0:02:27.6]}
7. Be3 {[%clk 0:02:24.9]} 7... Bf5 {[%clk 0:02:26.5]} 8. Nf3 {[%clk 0:02:20.3]}
8... e6 {[%clk 0:02:27.1]} 9. Qd2 {[%clk 0:02:09.8]} 9... Nd7 {[%clk 0:02:21.4]}
10. O-O-O {[%clk 0:02:03.1]} 10... Nh6 {[%clk 0:02:11.8]} 11. h3 {[%clk
0:02:00.5]} 11... Ng8 {[%clk 0:01:58.2]} 12. Rg1 {[%clk 0:01:55.2]} 12... h4
{[%clk 0:01:30.7]} 13. Bf2 {[%clk 0:01:44.8]} 13... Bf8 {[%clk 0:01:24.8]} 14.
g3 {[%clk 0:01:19.3]} 14... hxg3 {[%clk 0:01:23.1]} 15. Rxg3 {[%clk 0:01:17]}
15... Be7 {[%clk 0:01:17.8]} 16. Bg2 {[%clk 0:00:58.4]} 16... c6 {[%clk
0:01:05.4]} 17. Ne2 {[%clk 0:00:50.9]} 17... Qb6 {[%clk 0:00:48.3]} 18. Nfg1
{[%clk 0:00:39]} 18... O-O-O {[%clk 0:00:48.2]} 19. Rb3 {[%clk 0:00:36.7]} 19...
Qc7 {[%clk 0:00:39.3]} 20. Ng3 {[%clk 0:00:29.9]} 20... Nh6 {[%clk 0:00:34.7]}
21. N1e2 {[%clk 0:00:21.7]} 21... Kb8 {[%clk 0:00:34.1]} 22. Nc3 {[%clk
0:00:20]} 22... Ka8 {[%clk 0:00:24.9]} 23. Na4 {[%clk 0:00:18.6]} 23... Rc8
{[%clk 0:00:20.1]} 24. Nxf5 {[%clk 0:00:11.9]} 24... Nxf5 {[%clk 0:00:19.1]} 25.
Qe2 {[%clk 0:00:09]} 25... c5 {[%clk 0:00:19]} 26. dxc5 {[%clk 0:00:07.1]} 26...
Nxc5 {[%clk 0:00:18.8]} 27. Nxc5 {[%clk 0:00:04.3]} 27... Bxc5 {[%clk
0:00:18.4]} 28. Bxc5 {[%clk 0:00:02.7]} 28... Qxc5 {[%clk 0:00:18.9]} 29. Rc3
{[%clk 0:00:02.7]} 29... Qb6 {[%clk 0:00:17.8]} 0-1

[Event "*** Titled Tuesday Blitz"]
[Site "Chess.com"]
[Date "2018.08.07"]
[Round "8"]
[White "juniortay"]
[Black "hypert"]
[Result "0-1"]
[WhiteElo "2400"]
[BlackElo "2365"]
[TimeControl "180+2"]
[EndTime "14:48:49 PDT"]
[Termination "hypert won by resignation"]

1. e4 {[%clk 0:03:01.9]} 1... c5 {[%clk 0:03:00.2]} 2. Nc3 {[%clk 0:03:01.7]}
2... Nc6 {[%clk 0:03:01]} 3. f4 {[%clk 0:03:02.8]} 3... e6 {[%clk 0:03:01.7]} 4.
Nf3 {[%clk 0:03:03.9]} 4... Nge7 {[%clk 0:03:02.7]} 5. Bb5 {[%clk 0:03:00.2]}
5... d5 {[%clk 0:03:03.4]} 6. O-O {[%clk 0:03:00]} 6... a6 {[%clk 0:03:00.5]} 7.
Bxc6+ {[%clk 0:02:54.7]} 7... Nxc6 {[%clk 0:03:00.9]} 8. d3 {[%clk 0:02:37.4]}
8... Be7 {[%clk 0:03:01.3]} 9. Qe1 {[%clk 0:02:37.1]} 9... Nd4 {[%clk
0:02:56.9]} 10. Nxd4 {[%clk 0:02:33.8]} 10... cxd4 {[%clk 0:02:57.6]} 11. Ne2
{[%clk 0:02:33.8]} 11... dxe4 {[%clk 0:02:58.6]} 12. dxe4 {[%clk 0:02:34.2]}
12... O-O {[%clk 0:02:48.9]} 13. Qg3 {[%clk 0:02:27.5]} 13... Kh8 {[%clk
0:02:46.4]} 14. Kh1 {[%clk 0:02:27.8]} 14... b5 {[%clk 0:02:46.7]} 15. Rd1
{[%clk 0:02:27.2]} 15... Bc5 {[%clk 0:02:44.7]} 16. Be3 {[%clk 0:02:21.7]} 16...
Bb7 {[%clk 0:02:44.3]} 17. Bxd4 {[%clk 0:02:22]} 17... Bxd4 {[%clk 0:02:45.3]}
18. Rxd4 {[%clk 0:02:21.4]} 18... Qc7 {[%clk 0:02:44.2]} 19. c3 {[%clk
0:02:16.3]} 19... Rad8 {[%clk 0:02:44]} 20. Rad1 {[%clk 0:02:15.7]} 20... Bxe4
{[%clk 0:02:40.1]} 21. Qe3 {[%clk 0:01:47]} 21... Rxd4 {[%clk 0:02:36.9]} 22.
Rxd4 {[%clk 0:01:46.3]} 22... Bd5 {[%clk 0:02:35.8]} 23. f5 {[%clk 0:01:39.3]}
23... Qb7 {[%clk 0:02:09.4]} 24. Qg3 {[%clk 0:01:24.6]} 24... exf5 {[%clk
0:02:03.8]} 25. Nf4 {[%clk 0:01:15.6]} 25... Bxa2 {[%clk 0:01:50.4]} 26. Nh5
{[%clk 0:01:08.7]} 26... f6 {[%clk 0:01:50.4]} 27. Qd6 {[%clk 0:00:44.5]} 27...
Re8 {[%clk 0:01:44]} 28. h4 {[%clk 0:00:34.8]} 28... Qe7 {[%clk 0:01:37.3]} 29.
Qxa6 {[%clk 0:00:20.4]} 29... Bc4 {[%clk 0:01:10.4]} 30. Qd6 {[%clk 0:00:19.1]}
30... Qxd6 {[%clk 0:01:08]} 31. Rxd6 {[%clk 0:00:21]} 31... Kg8 {[%clk
0:01:07.4]} 32. Rd7 {[%clk 0:00:20.7]} 32... Bf7 {[%clk 0:01:07.7]} 33. Nf4
{[%clk 0:00:22.2]} 33... Re1+ {[%clk 0:01:06.3]} 34. Kh2 {[%clk 0:00:22.7]}
34... Re4 {[%clk 0:01:06.6]} 35. Kg3 {[%clk 0:00:20.7]} 35... g5 {[%clk
0:01:03]} 36. hxg5 {[%clk 0:00:17.4]} 36... fxg5 {[%clk 0:01:03.9]} 37. Nd3
{[%clk 0:00:19]} 37... Bc4 {[%clk 0:00:57.2]} 38. Nc5 {[%clk 0:00:19.8]} 38...
Re3+ {[%clk 0:00:58]} 39. Kf2 {[%clk 0:00:20.3]} 39... f4 {[%clk 0:00:59.2]} 40.
Nb7 {[%clk 0:00:15.1]} 40... g4 {[%clk 0:00:57.1]} 41. Rd2 {[%clk 0:00:13.3]}
41... g3+ {[%clk 0:00:57.4]} 0-1

[Event "*** Titled Tuesday Blitz"]
[Site "Chess.com"]
[Date "2018.08.07"]
[Round "8"]
[White "NateSolon"]
[Black "Firouzja2003"]
[Result "0-1"]
[WhiteElo "2525"]
[BlackElo "2835"]
[TimeControl "180+2"]
[EndTime "14:48:55 PDT"]
[Termination "Firouzja2003 won by resignation"]

1. d4 {[%clk 0:03:01.9]} 1... Nf6 {[%clk 0:03:00.8]} 2. Bg5 {[%clk 0:03:01.9]}
2... c5 {[%clk 0:03:01.3]} 3. Bxf6 {[%clk 0:03:02.6]} 3... gxf6 {[%clk
0:03:01.9]} 4. d5 {[%clk 0:03:03.2]} 4... Qb6 {[%clk 0:03:03.3]} 5. Qc1 {[%clk
0:03:04.1]} 5... Bh6 {[%clk 0:03:02.2]} 6. e3 {[%clk 0:03:05.1]} 6... f5 {[%clk
0:03:01.9]} 7. c4 {[%clk 0:03:05.8]} 7... f4 {[%clk 0:03:02.1]} 8. exf4 {[%clk
0:03:06.7]} 8... Bxf4 {[%clk 0:03:04]} 9. Qxf4 {[%clk 0:03:07.4]} 9... Qxb2
{[%clk 0:03:04.3]} 10. Ne2 {[%clk 0:03:08.3]} 10... Qxa1 {[%clk 0:03:05.4]} 11.
Nc3 {[%clk 0:03:09.4]} 11... d6 {[%clk 0:03:06.3]} 12. Qd2 {[%clk 0:03:09.8]}
12... a6 {[%clk 0:02:24.9]} 13. Be2 {[%clk 0:03:08.8]} 13... b5 {[%clk
0:02:25.9]} 14. cxb5 {[%clk 0:03:06.8]} 14... axb5 {[%clk 0:02:27]} 15. Bxb5+
{[%clk 0:03:05.5]} 15... Bd7 {[%clk 0:02:13.4]} 16. Bc4 {[%clk 0:02:51.2]} 16...
Rg8 {[%clk 0:01:23]} 17. g3 {[%clk 0:02:45.2]} 17... Bh3 {[%clk 0:01:15]} 18.
Qh6 {[%clk 0:02:19.8]} 18... Bf5 {[%clk 0:00:45.2]} 19. Qd2 {[%clk 0:02:09.8]}
19... Bh3 {[%clk 0:00:30.1]} 20. Qh6 {[%clk 0:02:06.7]} 20... Bg2 {[%clk
0:00:30.6]} 21. Rg1 {[%clk 0:02:07.2]} 21... Be4 {[%clk 0:00:30.9]} 22. Qc1
{[%clk 0:01:06.1]} 22... Bxb1 {[%clk 0:00:25.9]} 23. Kd2 {[%clk 0:01:04.6]}
23... Nd7 {[%clk 0:00:21.5]} 24. Qxb1 {[%clk 0:00:58.9]} 24... Qxb1 {[%clk
0:00:22.4]} 25. Rxb1 {[%clk 0:01:00.8]} 25... Ne5 {[%clk 0:00:23.3]} 26. Bb5+
{[%clk 0:01:01.7]} 26... Kf8 {[%clk 0:00:24.7]} 27. h4 {[%clk 0:00:57.3]} 27...
Kg7 {[%clk 0:00:25.4]} 28. a4 {[%clk 0:00:57.9]} 28... Nf3+ {[%clk 0:00:24.6]}
29. Ke3 {[%clk 0:00:57.7]} 29... Nd4 {[%clk 0:00:26.5]} 30. Kd3 {[%clk
0:00:57.8]} 30... Rgb8 {[%clk 0:00:26.7]} 31. Re1 {[%clk 0:00:57]} 31... e6
{[%clk 0:00:25.2]} 32. Bc4 {[%clk 0:00:54.8]} 32... e5 {[%clk 0:00:14.4]} 33.
Bb5 {[%clk 0:00:49.5]} 33... f5 {[%clk 0:00:15.3]} 34. Kc4 {[%clk 0:00:48.9]}
34... e4 {[%clk 0:00:15]} 35. Rb1 {[%clk 0:00:42.5]} 35... Nf3 {[%clk
0:00:09.5]} 36. Ne2 {[%clk 0:00:39]} 36... Nd2+ {[%clk 0:00:10]} 0-1

[Event "*** Titled Tuesday Blitz"]
[Site "Chess.com"]
[Date "2018.08.07"]
[Round "8"]
[White "Stormeman100100"]
[Black "MarshKnight"]
[Result "1-0"]
[WhiteElo "2123"]
[BlackElo "2078"]
[TimeControl "180+2"]
[EndTime "14:49:01 PDT"]
[Termination "Stormeman100100 won by resignation"]

1. e4 {[%clk 0:03:01.9]} 1... e6 {[%clk 0:03:01.1]} 2. d4 {[%clk 0:03:01.7]}
2... d5 {[%clk 0:03:02.1]} 3. Nd2 {[%clk 0:03:01.7]} 3... Nc6 {[%clk 0:03:02.9]}
4. Ngf3 {[%clk 0:03:01.4]} 4... Nf6 {[%clk 0:03:03.3]} 5. e5 {[%clk 0:03:01.6]}
5... Nd7 {[%clk 0:03:04.8]} 6. Bb5 {[%clk 0:02:58.2]} 6... a5 {[%clk 0:02:59.5]}
7. O-O {[%clk 0:02:55.1]} 7... Na7 {[%clk 0:03:00.1]} 8. Bd3 {[%clk 0:02:49.7]}
8... c5 {[%clk 0:02:59.9]} 9. c3 {[%clk 0:02:50.4]} 9... Nc6 {[%clk 0:02:59]}
10. Re1 {[%clk 0:02:44.9]} 10... Be7 {[%clk 0:02:58.8]} 11. Nf1 {[%clk
0:02:45.4]} 11... Qb6 {[%clk 0:02:56.1]} 12. Bc2 {[%clk 0:02:18.3]} 12... O-O
{[%clk 0:02:48.9]} 13. Ng3 {[%clk 0:02:13.6]} 13... f5 {[%clk 0:02:36.5]} 14.
exf6 {[%clk 0:02:12.8]} 14... Nxf6 {[%clk 0:02:37.6]} 15. Ng5 {[%clk 0:01:31.1]}
15... cxd4 {[%clk 0:02:26.3]} 16. Nxe6 {[%clk 0:01:06]} 16... Bxe6 {[%clk
0:02:27.1]} 17. Rxe6 {[%clk 0:01:04.4]} 17... dxc3 {[%clk 0:02:28.6]} 18. Nf5
{[%clk 0:00:34.4]} 18... cxb2 {[%clk 0:02:25.4]} 19. Bxb2 {[%clk 0:00:26.9]}
19... Qxb2 {[%clk 0:01:54.4]} 20. Rb1 {[%clk 0:00:25.1]} 20... Qxa2 {[%clk
0:01:50]} 21. Rxb7 {[%clk 0:00:20.1]} 21... Rf7 {[%clk 0:01:34.8]} 22. Rxc6
{[%clk 0:00:17.3]} 22... Bf8 {[%clk 0:01:32.5]} 23. Rxf7 {[%clk 0:00:17.3]}
23... Kxf7 {[%clk 0:01:33.4]} 24. Rc7+ {[%clk 0:00:18.8]} 24... Kg8 {[%clk
0:01:34.5]} 25. Bb3 {[%clk 0:00:18.9]} 25... Qa3 {[%clk 0:01:25.1]} 26. Bxd5+
{[%clk 0:00:19.4]} 26... Nxd5 {[%clk 0:01:21.7]} 27. Qxd5+ {[%clk 0:00:21.3]}
27... Kh8 {[%clk 0:01:23.1]} 28. g3 {[%clk 0:00:21.3]} 28... Re8 {[%clk
0:01:20.5]} 29. Kg2 {[%clk 0:00:21.3]} 29... a4 {[%clk 0:00:57.8]} 30. Qf7
{[%clk 0:00:20.4]} 30... Rb8 {[%clk 0:00:49.3]} 31. Nxg7 {[%clk 0:00:20.3]}
31... Qb3 {[%clk 0:00:49.9]} 32. Ne6 {[%clk 0:00:19.2]} 32... Qd3 {[%clk
0:00:36.3]} 33. Nxf8 {[%clk 0:00:18.2]} 33... Qe4+ {[%clk 0:00:37.5]} 34. Kh3
{[%clk 0:00:17.3]} 1-0

[Event "*** Titled Tuesday Blitz"]
[Site "Chess.com"]
[Date "2018.08.07"]
[Round "8"]
[White "Maili15"]
[Black "Marcan2b"]
[Result "1-0"]
[WhiteElo "2272"]
[BlackElo "2296"]
[TimeControl "180+2"]
[EndTime "14:49:02 PDT"]
[Termination "Maili15 won by resignation"]

1. d4 {[%clk 0:03:01.9]} 1... Nf6 {[%clk 0:02:59.9]} 2. c4 {[%clk 0:03:02.8]}
2... e6 {[%clk 0:03:00.4]} 3. Nc3 {[%clk 0:03:03.9]} 3... Bb4 {[%clk 0:02:59.2]}
4. e3 {[%clk 0:03:05.4]} 4... O-O {[%clk 0:02:58.1]} 5. Bd3 {[%clk 0:03:04.2]}
5... d5 {[%clk 0:02:49]} 6. cxd5 {[%clk 0:03:01.1]} 6... exd5 {[%clk 0:02:49.2]}
7. Ne2 {[%clk 0:03:01.6]} 7... Nbd7 {[%clk 0:02:44]} 8. O-O {[%clk 0:03:01.2]}
8... c5 {[%clk 0:02:45]} 9. a3 {[%clk 0:03:01.2]} 9... Bxc3 {[%clk 0:02:30.6]}
10. bxc3 {[%clk 0:03:03.1]} 10... b6 {[%clk 0:02:29]} 11. f3 {[%clk 0:03:03.5]}
11... Bb7 {[%clk 0:02:29]} 12. g4 {[%clk 0:02:55.8]} 12... Ne8 {[%clk
0:01:39.3]} 13. Ng3 {[%clk 0:02:52.3]} 13... Nd6 {[%clk 0:01:31.2]} 14. Bd2
{[%clk 0:02:31.7]} 14... Re8 {[%clk 0:01:28.4]} 15. Qc2 {[%clk 0:02:24.9]} 15...
g6 {[%clk 0:01:25.4]} 16. Qc1 {[%clk 0:02:16.3]} 16... Rc8 {[%clk 0:01:24]} 17.
Qb1 {[%clk 0:02:11]} 17... Nc4 {[%clk 0:01:07.2]} 18. Bxc4 {[%clk 0:01:57.2]}
18... dxc4 {[%clk 0:01:09.1]} 19. Qb2 {[%clk 0:01:28.6]} 19... cxd4 {[%clk
0:00:42.6]} 20. exd4 {[%clk 0:01:28.1]} 20... Qc7 {[%clk 0:00:37.1]} 21. Qc1
{[%clk 0:01:19.3]} 21... Nf6 {[%clk 0:00:36]} 22. Bf4 {[%clk 0:01:15.2]} 22...
Qc6 {[%clk 0:00:31]} 23. g5 {[%clk 0:00:56]} 23... Nd5 {[%clk 0:00:30.8]} 24.
Be5 {[%clk 0:00:57]} 24... Qa4 {[%clk 0:00:17]} 25. Ne4 {[%clk 0:00:54.1]} 25...
Rcd8 {[%clk 0:00:14.4]} 26. Qd2 {[%clk 0:00:48.7]} 26... Qd7 {[%clk 0:00:11.2]}
27. Qf2 {[%clk 0:00:48.4]} 27... Qf5 {[%clk 0:00:10.5]} 28. Qh4 {[%clk
0:00:46.3]} 28... Rxe5 {[%clk 0:00:11]} 29. dxe5 {[%clk 0:00:46.4]} 29... Qxe5
{[%clk 0:00:12.9]} 30. Rae1 {[%clk 0:00:44.9]} 30... Qg7 {[%clk 0:00:12.6]} 31.
Nf6+ {[%clk 0:00:42.9]} 31... Nxf6 {[%clk 0:00:11.8]} 32. gxf6 {[%clk
0:00:44.8]} 32... Qf8 {[%clk 0:00:13.5]} 33. Qxc4 {[%clk 0:00:42.6]} 33... Bd5
{[%clk 0:00:14.1]} 34. Qb4 {[%clk 0:00:41]} 34... Qh6 {[%clk 0:00:13.5]} 35. Re5
{[%clk 0:00:37.1]} 35... Qf4 {[%clk 0:00:12.2]} 36. Qxf4 {[%clk 0:00:37]} 1-0

[Event "*** Titled Tuesday Blitz"]
[Site "Chess.com"]
[Date "2018.08.07"]
[Round "8"]
[White "LucaBrasi1968"]
[Black "sergeikim"]
[Result "1-0"]
[WhiteElo "2475"]
[BlackElo "2361"]
[TimeControl "180+2"]
[EndTime "14:49:35 PDT"]
[Termination "LucaBrasi1968 won by resignation"]

1. e4 {[%clk 0:03:01.9]} 1... e5 {[%clk 0:03:00.1]} 2. Nf3 {[%clk 0:03:01.9]}
2... Nc6 {[%clk 0:03:00.9]} 3. d4 {[%clk 0:03:03]} 3... exd4 {[%clk 0:03:00.5]}
4. Nxd4 {[%clk 0:03:04.9]} 4... Bc5 {[%clk 0:03:00.9]} 5. Be3 {[%clk 0:03:05.1]}
5... Qf6 {[%clk 0:03:00.3]} 6. c3 {[%clk 0:03:04.8]} 6... Nge7 {[%clk
0:03:00.6]} 7. Bc4 {[%clk 0:03:05]} 7... d6 {[%clk 0:03:01.1]} 8. O-O {[%clk
0:03:05.1]} 8... a6 {[%clk 0:03:01.4]} 9. Nxc6 {[%clk 0:02:58.3]} 9... Nxc6
{[%clk 0:02:59.8]} 10. Bxc5 {[%clk 0:02:59.1]} 10... dxc5 {[%clk 0:03:00.6]} 11.
f4 {[%clk 0:02:58.8]} 11... Be6 {[%clk 0:02:56.1]} 12. e5 {[%clk 0:02:50.2]}
12... Qe7 {[%clk 0:02:55.5]} 13. Bxe6 {[%clk 0:02:40.6]} 13... fxe6 {[%clk
0:02:49.7]} 14. Nd2 {[%clk 0:02:39.1]} 14... O-O-O {[%clk 0:02:49.4]} 15. Qe2
{[%clk 0:02:39.7]} 15... Qd7 {[%clk 0:02:43.8]} 16. Ne4 {[%clk 0:02:39.6]} 16...
Qe7 {[%clk 0:02:27.5]} 17. Qc4 {[%clk 0:02:38]} 17... Rd5 {[%clk 0:02:26.9]} 18.
Qe2 {[%clk 0:02:21.4]} 18... Rhd8 {[%clk 0:02:21.7]} 19. Qh5 {[%clk 0:02:17.3]}
19... h6 {[%clk 0:02:18.1]} 20. Rae1 {[%clk 0:02:13.1]} 20... c4 {[%clk
0:02:01]} 21. Qe2 {[%clk 0:02:04]} 21... Rd3 {[%clk 0:02:00.4]} 22. Kh1 {[%clk
0:02:00.6]} 22... R8d5 {[%clk 0:01:44.3]} 23. h3 {[%clk 0:01:46.6]} 23... Kb8
{[%clk 0:01:35.8]} 24. Rb1 {[%clk 0:01:32.8]} 24... g5 {[%clk 0:01:27.5]} 25.
fxg5 {[%clk 0:01:20.6]} 25... hxg5 {[%clk 0:01:27]} 26. Nf2 {[%clk 0:01:15.2]}
26... Rxe5 {[%clk 0:01:20.7]} 27. Qg4 {[%clk 0:01:13.6]} 27... Rd2 {[%clk
0:01:13.6]} 28. Ne4 {[%clk 0:01:11.3]} 28... Rd8 {[%clk 0:01:06.4]} 29. Rbe1
{[%clk 0:00:57.3]} 29... Qg7 {[%clk 0:01:00]} 30. Re2 {[%clk 0:00:47.1]} 30...
Rf8 {[%clk 0:00:56.8]} 31. Rfe1 {[%clk 0:00:44.7]} 31... Rf4 {[%clk 0:00:56.6]}
32. Qg3 {[%clk 0:00:43]} 32... Ref5 {[%clk 0:00:43.3]} 33. Nd2 {[%clk
0:00:41.8]} 33... e5 {[%clk 0:00:39.8]} 34. Nf3 {[%clk 0:00:42.4]} 34... g4
{[%clk 0:00:37.6]} 35. Nh2 {[%clk 0:00:28.4]} 35... Qf7 {[%clk 0:00:26.5]} 36.
Nxg4 {[%clk 0:00:27.4]} 36... Rf1+ {[%clk 0:00:26.8]} 37. Kh2 {[%clk 0:00:28.5]}
37... Rxe1 {[%clk 0:00:27]} 38. Rxe1 {[%clk 0:00:29.4]} 38... Rf2 {[%clk
0:00:25.3]} 39. Qxf2 {[%clk 0:00:29.2]} 39... Qd5 {[%clk 0:00:24.8]} 40. Qe3
{[%clk 0:00:30]} 40... e4 {[%clk 0:00:23.5]} 41. Qxe4 {[%clk 0:00:30.2]} 41...
Qd2 {[%clk 0:00:21.4]} 42. Re2 {[%clk 0:00:30.6]} 42... Qd6+ {[%clk 0:00:21.3]}
43. Kh1 {[%clk 0:00:30.4]} 43... Qd1+ {[%clk 0:00:20.3]} 44. Kh2 {[%clk
0:00:31]} 44... Qd6+ {[%clk 0:00:20.6]} 45. Ne5 {[%clk 0:00:32.9]} 45... Na5
{[%clk 0:00:16.4]} 46. Qd4 {[%clk 0:00:31.1]} 1-0

[Event "*** Titled Tuesday Blitz"]
[Site "Chess.com"]
[Date "2018.08.07"]
[Round "8"]
[White "Slovak_fighter2000"]
[Black "Passacaglia23"]
[Result "1/2-1/2"]
[WhiteElo "2408"]
[BlackElo "2271"]
[TimeControl "180+2"]
[EndTime "14:49:49 PDT"]
[Termination "Game drawn - insufficient material"]

1. d4 {[%clk 0:03:01.9]} 1... d5 {[%clk 0:02:59.7]} 2. Nf3 {[%clk 0:03:02.7]}
2... Nf6 {[%clk 0:03:00.6]} 3. Bf4 {[%clk 0:03:02.5]} 3... c5 {[%clk 0:03:02]}
4. e3 {[%clk 0:03:03.5]} 4... Nc6 {[%clk 0:03:03.4]} 5. Nbd2 {[%clk 0:03:03.4]}
5... Bf5 {[%clk 0:03:02.4]} 6. c3 {[%clk 0:03:04.1]} 6... e6 {[%clk 0:02:59.6]}
7. Bb5 {[%clk 0:03:02.9]} 7... Qb6 {[%clk 0:02:48.5]} 8. Qa4 {[%clk 0:03:01.9]}
8... Nd7 {[%clk 0:02:45.6]} 9. O-O {[%clk 0:03:00.9]} 9... Be7 {[%clk 0:02:36]}
10. c4 {[%clk 0:02:47.7]} 10... a6 {[%clk 0:02:16.1]} 11. cxd5 {[%clk 0:02:45]}
11... exd5 {[%clk 0:02:12.6]} 12. Bxc6 {[%clk 0:02:40.7]} 12... Qxc6 {[%clk
0:02:13.1]} 13. Qxc6 {[%clk 0:02:41]} 13... bxc6 {[%clk 0:02:13.9]} 14. dxc5
{[%clk 0:02:40.4]} 14... Bxc5 {[%clk 0:02:03.3]} 15. Rac1 {[%clk 0:02:34.5]}
15... Rc8 {[%clk 0:01:47.6]} 16. Nd4 {[%clk 0:02:33.9]} 16... Bxd4 {[%clk
0:01:43.5]} 17. exd4 {[%clk 0:02:35.8]} 17... O-O {[%clk 0:01:40]} 18. Rfe1
{[%clk 0:02:34.8]} 18... Be6 {[%clk 0:01:38.5]} 19. Bd6 {[%clk 0:02:32]} 19...
Rfd8 {[%clk 0:01:30]} 20. Ba3 {[%clk 0:02:33.2]} 20... Nb6 {[%clk 0:01:20.5]}
21. b3 {[%clk 0:02:31]} 21... a5 {[%clk 0:01:20.3]} 22. Bc5 {[%clk 0:02:31.4]}
22... Nd7 {[%clk 0:01:21]} 23. Be7 {[%clk 0:02:28.8]} 23... Re8 {[%clk 0:01:22]}
24. Ba3 {[%clk 0:02:28.7]} 24... a4 {[%clk 0:01:16.1]} 25. f3 {[%clk 0:02:23.7]}
25... axb3 {[%clk 0:01:07.8]} 26. axb3 {[%clk 0:02:25.6]} 26... Ra8 {[%clk
0:00:56.8]} 27. Ra1 {[%clk 0:02:20.5]} 27... Rec8 {[%clk 0:00:41.4]} 28. Rec1
{[%clk 0:02:20]} 28... c5 {[%clk 0:00:34.3]} 29. dxc5 {[%clk 0:02:10.3]} 29...
Nxc5 {[%clk 0:00:34.9]} 30. Bxc5 {[%clk 0:02:04.4]} 30... Rxa1 {[%clk
0:00:32.7]} 31. Rxa1 {[%clk 0:02:06.3]} 31... Rxc5 {[%clk 0:00:33.9]} 32. Ra8+
{[%clk 0:02:07.6]} 32... Rc8 {[%clk 0:00:35.3]} 33. Rxc8+ {[%clk 0:02:08.1]}
33... Bxc8 {[%clk 0:00:36.1]} 34. Kf2 {[%clk 0:02:09.3]} 34... Kf8 {[%clk
0:00:34.3]} 35. Ke3 {[%clk 0:02:10.7]} 35... Ke7 {[%clk 0:00:35.9]} 36. Kd4
{[%clk 0:02:12.1]} 36... Kd6 {[%clk 0:00:37]} 37. b4 {[%clk 0:02:13.2]} 37...
Ba6 {[%clk 0:00:30.4]} 38. Nb1 {[%clk 0:02:12.8]} 38... h5 {[%clk 0:00:24.2]}
39. Nc3 {[%clk 0:02:13.6]} 39... Bc4 {[%clk 0:00:24.6]} 40. g3 {[%clk
0:02:11.6]} 40... g5 {[%clk 0:00:24.7]} 41. Nd1 {[%clk 0:02:12.2]} 41... Be2
{[%clk 0:00:23.4]} 42. Ne3 {[%clk 0:02:08.7]} 42... Bxf3 {[%clk 0:00:24]} 43.
Nf5+ {[%clk 0:02:10]} 43... Ke6 {[%clk 0:00:21]} 44. Ne3 {[%clk 0:02:10.6]}
44... Kd6 {[%clk 0:00:20.2]} 45. b5 {[%clk 0:02:10.6]} 45... h4 {[%clk
0:00:10.8]} 46. gxh4 {[%clk 0:02:10.1]} 46... gxh4 {[%clk 0:00:12.7]} 47. Nf5+
{[%clk 0:02:11.5]} 47... Kc7 {[%clk 0:00:13.5]} 48. Nxh4 {[%clk 0:02:11.7]}
48... Be2 {[%clk 0:00:13.5]} 49. Kc5 {[%clk 0:02:10.2]} 49... d4 {[%clk
0:00:14.3]} 50. b6+ {[%clk 0:01:56.7]} 50... Kb7 {[%clk 0:00:13.9]} 51. Kxd4
{[%clk 0:01:58.2]} 51... Kxb6 {[%clk 0:00:15.3]} 52. Ke5 {[%clk 0:01:57.4]}
52... Kc7 {[%clk 0:00:14.2]} 53. Kf6 {[%clk 0:01:58.1]} 53... Bc4 {[%clk
0:00:15.2]} 54. Nf5 {[%clk 0:01:57.9]} 54... Kd7 {[%clk 0:00:11.7]} 55. h4
{[%clk 0:01:57.2]} 55... Bd3 {[%clk 0:00:07.5]} 56. Ng7 {[%clk 0:01:48.2]} 56...
Bg6 {[%clk 0:00:06.5]} 57. Kg5 {[%clk 0:01:37.4]} 57... Ke7 {[%clk 0:00:07]} 58.
Kh6 {[%clk 0:01:32.3]} 58... Kf8 {[%clk 0:00:07.6]} 59. Ne6+ {[%clk 0:01:27.3]}
59... fxe6 {[%clk 0:00:07.6]} 60. Kxg6 {[%clk 0:01:28.7]} 60... Kg8 {[%clk
0:00:08.5]} 61. Kf6 {[%clk 0:01:29.2]} 61... Kh7 {[%clk 0:00:09.1]} 62. Kxe6
{[%clk 0:01:30.4]} 62... Kh6 {[%clk 0:00:09.8]} 63. Kf5 {[%clk 0:01:32]} 63...
Kh5 {[%clk 0:00:11.2]} 64. Kf4 {[%clk 0:01:33.5]} 64... Kxh4 {[%clk 0:00:12.6]}
1/2-1/2